bitfinex/quotes_SOLUSD_20250416
["timestamp","ask_amount","ask_price","bid_price","bid_amount"]
[1744812184807,36.91820568,124.85,124.81,8.01217851]
[1744812185124,44.92746488,124.86,124.81,44.93038419]
[1744812185606,36.91820568,124.85,124.81,44.93038419]
[1744812186408,36.91820568,124.85,124.81,8.01217851]
[1744812186808,36.91820568,124.84,124.8,8.01251297]
[1744812187509,8.00926278,124.86,124.8,44.93071865]
[1744812187703,36.91820568,124.85,124.8,44.93071865]
[1744812188502,36.91820568,124.85,124.81,36.91820568]
[1744812188814,36.91820568,124.86,124.81,36.91820568]
[1744812189416,34.00867526,124.87,124.81,36.91820568]
[1744812189605,36.91820568,124.89,124.84,36.91820568]
[1744812189917,26.0,124.86,124.84,36.91820568]
[1744812190115,26.0,124.86,124.83,36.91820568]
[1744812190319,26.0,124.86,124.82,18.64964886]
[1744812190320,36.91820568,124.85,124.82,8.01121665]
[1744812190609,36.91820568,124.83,124.77,44.93295281]
[1744812190807,36.91820568,124.83,124.78,36.91820568]
[1744812191012,36.91820568,124.84,124.79,36.91820568]
[1744812191224,36.91820568,124.83,124.78,36.91820568]
[1744812192529,82.94063079,124.86,124.79,8.01346261]
[1744812192818,36.91820568,124.85,124.8,36.91820568]
[1744812193194,36.91820568,124.85,124.79,8.01346261]
[1744812193195,44.92679582,124.87,124.82,36.91820568]
[1744812193394,44.92621216,124.88,124.83,36.91820568]
[1744812193619,26.0,124.87,124.83,36.91820568]
[1744812194301,36.91820568,124.86,124.82,55.56785454]
[1744812194613,36.91820568,124.86,124.83,8.01089481]
[1744812194830,62.91820568,124.87,124.83,8.01089481]
[1744812195114,36.91820568,124.88,124.84,36.91820568]
[1744812195322,36.91820568,124.91,124.86,36.91820568]
[1744812195490,36.91820568,124.9,124.85,36.91820568]
[1744812195896,36.91820568,124.89,124.85,36.91820568]
[1744812196322,36.91820568,124.88,124.84,18.64964886]
[1744812196609,36.91820568,124.88,124.84,55.56785454]
[1744812196895,36.91820568,124.87,124.83,8.01056185]
[1744812197126,36.91820568,124.86,124.83,8.01056185]
[1744812197301,62.91820568,124.87,124.83,8.01056185]
[1744812198600,26.0,124.87,124.83,44.92876753]
[1744812198803,62.91820568,124.87,124.83,8.01056185]
[1744812200313,70.9265634,124.87,124.83,8.01056185]
[1744812200516,62.91820568,124.87,124.83,8.01056185]
[1744812200824,36.91820568,124.88,124.83,44.92876753]
[1744812201126,62.91820568,124.89,124.84,36.91820568]
[1744812201318,70.9252809,124.89,124.84,36.91820568]
[1744812201827,36.91820568,124.88,124.83,44.92876753]
[1744812202023,36.91820568,124.85,124.82,8.01132847]
[1744812202203,36.91820568,124.85,124.81,14.44052996]
[1744812202697,36.91820568,124.86,124.81,51.35873564]
[1744812203621,36.91820568,124.86,124.82,36.91820568]
[1744812204325,34.0073714,124.89,124.83,55.56785454]
[1744812204521,36.91820568,124.88,124.83,55.56785454]
[1744812205223,44.9259372,124.88,124.84,8.01025312]
[1744812205525,44.9259372,124.88,124.83,44.92899717]
[1744812205733,36.91820568,124.86,124.82,8.01153661]
[1744812207418,36.91820568,124.86,124.81,44.93038419]
[1744812207921,8.00861258,124.87,124.81,44.93038419]
[1744812208231,36.91820568,124.86,124.81,44.93038419]
[1744812209233,23.10231691,124.86,124.81,23.10231691]
[1744812210353,31.11152494,124.86,124.81,31.11449542]
[1744812210511,8.00920803,124.86,124.81,8.01217851]
[1744812210716,31.11152494,124.86,124.81,31.11449542]
[1744812211027,23.10231691,124.86,124.81,31.11449542]
[1744812211337,27.6154,124.89,124.82,23.10231691]
[1744812211638,23.10231691,124.86,124.81,31.11449542]
[1744812212442,23.10231691,124.85,124.81,8.01217851]
[1744812213444,23.10231691,124.86,124.81,31.11449542]
[1744812214629,31.11150273,124.86,124.81,31.11449542]
[1744812214945,23.10231691,124.86,124.81,31.11449542]
[1744812215348,8.00867166,124.87,124.82,23.10231691]
[1744812215349,23.10231691,124.87,124.82,23.10231691]
[1744812216846,23.10231691,124.86,124.81,51.14494169]
[1744812217441,31.11099992,124.87,124.81,51.14494169]
[1744812217948,26.0,124.87,124.81,51.14494169]
[1744812218128,49.10231691,124.87,124.81,51.14494169]
[1744812219251,57.11070204,124.87,124.82,23.10231691]
[1744812219747,26.0,124.87,124.82,23.10231691]
[1744812220235,26.0,124.87,124.83,23.10231691]
[1744812220542,49.10231691,124.87,124.82,41.75196577]
[1744812220747,49.10231691,124.87,124.82,18.64964886]
[1744812220949,49.10231691,124.87,124.82,41.75196577]
[1744812221338,49.10231691,124.87,124.83,8.01089481]
[1744812222046,57.11070055,124.87,124.82,31.1135373]
[1744812222233,23.10231691,124.83,124.79,1.6195]
[1744812222548,26.0,124.87,124.82,23.10231691]
[1744812222732,57.11081831,124.87,124.81,23.10231691]
[1744812222926,23.10231691,124.85,124.8,41.75196577]
[1744812223127,23.10231691,124.86,124.8,41.75196577]
[1744812223327,34.0085014,124.87,124.81,31.11449542]
[1744812223525,57.11081831,124.87,124.81,31.11449542]
[1744812224247,23.10231691,124.86,124.81,31.11449542]
[1744812224453,23.10231691,124.86,124.81,8.01217851]
[1744812225052,23.10231691,124.86,124.81,31.11449542]
[1744812225454,26.0,124.87,124.82,18.64964886]
[1744812225756,26.0,124.87,124.82,41.75196577]
[1744812227054,34.00854301,124.87,124.82,41.75196577]
[1744812227237,57.11085992,124.87,124.82,18.64964886]
[1744812227438,82.9,124.9,124.83,31.11321172]
[1744812227657,8.00608847,124.91,124.86,23.10231691]
[1744812227845,23.10231691,124.9,124.85,20.20414886]
[1744812228035,23.10231691,124.89,124.85,1.5545]
[1744812228850,23.10231691,124.87,124.82,9.56578145]
[1744812229462,31.11093325,124.87,124.82,9.56578145]
[1744812230161,31.11093325,124.87,124.82,32.66809836]
[1744812230357,31.11093325,124.87,124.82,9.56578145]
[1744812230538,23.10231691,124.87,124.82,32.66809836]
[1744812230845,31.11081363,124.87,124.82,32.66809836]
[1744812231732,23.10231691,124.87,124.82,32.66809836]
[1744812233372,82.9,124.9,124.83,18.64964886]
[1744812233665,23.10231691,124.88,124.83,41.75196577]
[1744812234168,23.10231691,124.88,124.84,8.01025312]
[1744812234964,26.0,124.9,124.85,23.10231691]
[1744812234965,49.10231691,124.9,124.85,23.10231691]
[1744812235866,23.10231691,124.89,124.84,31.11257003]
[1744812236582,31.10951443,124.89,124.84,31.11257003]
[1744812236763,23.10231691,124.88,124.84,8.01025312]
[1744812238641,23.10231691,124.87,124.84,8.01025312]
[1744812239568,23.10231691,124.86,124.82,1.5545]
[1744812240472,23.10231691,124.86,124.82,9.56574846]
[1744812241769,23.10231691,124.84,124.79,1.5974]
[1744812241956,23.10231691,124.83,124.8,8.01282051]
[1744812242346,31.11141147,124.86,124.8,8.01282051]
[1744812242347,23.10231691,124.84,124.8,8.01282051]
[1744812242746,31.11223783,124.85,124.8,31.11513742]
[1744812243267,31.11223783,124.85,124.8,8.01282051]
[1744812243467,23.10231691,124.84,124.8,8.01282051]
[1744812243772,8.00992092,124.85,124.8,8.01282051]
[1744812244092,23.10231691,124.84,124.8,8.01282051]
[1744812245677,23.10231691,124.85,124.8,51.1471887]
[1744812245856,82.9,124.91,124.85,1.6022]
[1744812246042,20.27274553,124.93,124.87,23.10231691]
[1744812246243,23.10231691,124.91,124.85,1.6022]
[1744812246572,23.10231691,124.9,124.85,1.6022]
[1744812246872,23.10231691,124.89,124.85,32.71387927]
[1744812247075,23.10231691,124.89,124.85,24.70451691]
[1744812247369,23.10231691,124.88,124.84,8.00994346]
[1744812247774,23.10231691,124.91,124.86,23.10231691]
[1744812248351,34.00541092,124.92,124.87,23.10231691]
[1744812248550,23.10231691,124.91,124.87,23.10231691]
[1744812248772,23.10231691,124.91,124.87,8.00832866]
[1744812248975,23.10231691,124.9,124.87,8.00832866]
[1744812249476,23.10231691,124.91,124.87,8.00832866]
[1744812250278,49.10231691,124.92,124.87,31.11064557]
[1744812251064,23.10231691,124.91,124.87,8.00832866]
[1744812251267,26.0,124.92,124.87,8.00832866]
[1744812251588,49.10231691,124.92,124.87,32.62834557]
[1744812251877,26.0,124.94,124.89,23.10231691]
[1744812252180,26.0,124.93,124.9,23.10231691]
[1744812252381,23.10231691,124.95,124.91,8.00576415]
[1744812252554,90.90088804,124.99,124.94,23.10231691]
[1744812252753,23.10231691,124.99,124.94,23.10231691]
[1744812252966,35.37057993,125.0,124.95,23.10231691]
[1744812253254,35.37057993,125.0,124.96,23.10231691]
[1744812253677,12.26826302,125.0,124.96,23.10231691]
[1744812254170,35.37057993,125.0,124.95,29.39161691]
[1744812254350,35.37057993,125.0,124.96,8.00256081]
[1744812254553,35.37057993,125.0,124.95,14.29231477]
[1744812254554,23.10231691,124.98,124.95,14.29231477]
[1744812255064,23.10231691,124.99,124.95,14.29231477]
[1744812256383,23.10231691,124.98,124.95,6.2893]
[1744812256678,23.10231691,124.99,124.95,14.29236836]
[1744812256974,7.99966179,125.01,124.97,23.10231691]
[1744812256975,26.0,125.01,124.97,23.10231691]
[1744812257176,23.10231691,125.0,124.95,14.29236836]
[1744812257380,23.10231691,124.98,124.95,14.29246819]
[1744812257681,26.0,125.0,124.95,14.29246819]
[1744812257981,26.0,125.0,124.97,8.00192046]
[1744812258175,7.99896683,125.02,124.97,8.00192046]
[1744812258484,23.10231691,125.01,124.97,8.00192046]
[1744812259058,26.0,125.01,124.97,31.10423737]
[1744812259386,23.10231691,125.04,124.99,24.64491691]
[1744812259557,26.0,125.04,124.99,24.64491691]
[1744812259757,49.10231691,125.04,124.99,24.64491691]
[1744812259957,23.10231691,125.05,125.01,7.99936005]
[1744812260185,7.99641059,125.06,125.02,23.10231691]
[1744812260357,23.10231691,125.03,125.0,6.199]
[1744812260682,23.10231691,125.02,125.0,6.199]
[1744812260864,49.10231691,125.03,125.0,14.19889213]
[1744812261057,7.99519277,125.08,125.01,41.75196577]
[1744812261264,7.99424414,125.09,125.02,23.10231691]
[1744812261470,23.10231691,125.06,125.02,23.10231691]
[1744812261672,23.10231691,125.06,125.01,18.64964886]
[1744812261673,26.0,125.06,125.01,41.75196577]
[1744812261869,49.10231691,125.06,125.01,41.75196577]
[1744812262181,7.99424414,125.09,125.03,7.99808046]
[1744812262368,23.10231691,125.06,125.03,7.99808046]
[1744812262765,23.10231691,125.07,125.03,7.99808046]
[1744812262965,7.99424414,125.09,125.03,7.99808046]
[1744812263168,7.99232736,125.12,125.05,31.33651691]
[1744812263371,31.09464427,125.12,125.07,23.10231691]
[1744812263563,23.10231691,125.11,125.07,23.10231691]
[1744812263772,23.10231691,125.11,125.06,41.75196577]
[1744812264091,23.10231691,125.09,125.06,7.99616184]
[1744812264383,23.10231691,125.08,125.05,16.23068954]
[1744812264690,7.99382793,125.1,125.04,18.64964886]
[1744812264691,23.10231691,125.06,125.04,7.99720161]
[1744812264859,23.10231691,125.07,125.04,7.99720161]
[1744812265884,23.10231691,125.05,125.02,8.0761]
[1744812266187,23.10231691,125.04,125.02,1.5083]
[1744812266385,33.99581782,125.07,125.02,9.50701894]
[1744812266561,23.10231691,125.06,125.02,32.60933585]
[1744812266885,23.10231691,125.06,125.02,9.50701894]
[1744812267663,49.10231691,125.03,124.99,6.3001]
[1744812267864,49.10231691,125.03,124.98,1.6142]
[1744812267865,23.10231691,125.0,124.98,1.6142]
[1744812268081,23.10231691,125.01,124.98,9.6154465]
[1744812268278,23.10231691,125.0,124.98,1.6142]
[1744812268789,23.10231691,125.01,124.98,9.61542237]
[1744812269464,33.9983276,125.03,124.98,9.61542237]
[1744812269785,23.10231691,125.0,124.98,9.61542237]
[1744812270083,23.10231691,125.0,124.96,32.67094707]
[1744812270280,23.10231691,124.98,124.95,1.5536]
[1744812270588,23.10231691,124.96,124.93,32.92234729]
[1744812270978,34.00040773,125.0,124.93,32.92234729]
[1744812271180,36.90468893,124.96,124.93,32.92234729]
[1744812271378,36.90468893,124.97,124.93,32.92234729]
[1744812271780,36.90468893,124.98,124.94,26.65315174]
[1744812271959,36.90468893,124.99,124.94,44.90819181]
[1744812272166,36.90468893,124.97,124.94,26.65315174]
[1744812272583,36.90468893,124.98,124.94,26.65315174]
[1744812272775,7.99808046,125.03,124.96,36.90468893]
[1744812272983,36.90468893,125.01,124.96,36.90468893]
[1744812273182,36.90468893,125.0,124.96,36.90468893]
[1744812273380,36.90468893,125.01,124.97,18.64964886]
[1744812273583,7.99616184,125.06,125.0,36.90468893]
[1744812273794,7.99616184,125.06,125.02,36.90468893]
[1744812273795,36.90468893,125.06,125.02,36.90468893]
[1744812273986,36.90468893,125.05,125.01,36.90468893]
[1744812274176,26.0,125.04,125.0,44.90424132]
[1744812274379,36.90468893,125.05,125.01,36.90468893]
[1744812274688,19.99006686,125.07,125.01,36.90468893]
[1744812274873,26.0,125.03,125.01,36.90468893]
[1744812275073,26.0,125.04,125.01,18.64964886]
[1744812275391,26.0,125.04,125.01,55.55433779]
[1744812276190,26.0,125.04,125.01,63.55366857]
[1744812276385,26.0,125.04,125.01,26.64897964]
[1744812277995,26.0,125.04,125.01,18.64964886]
[1744812278188,62.90468893,125.04,125.01,18.64964886]
[1744812279393,36.90468893,125.02,124.99,33.27087214]
[1744812279690,62.90468893,125.04,125.0,18.64964886]
[1744812280073,26.0,125.04,125.0,18.64964886]
[1744812280292,62.90468893,125.04,125.0,18.64964886]
[1744812280492,33.99752451,125.04,125.0,18.64964886]
[1744812280697,36.90468893,125.03,125.0,18.64964886]
[1744812281082,62.90468893,125.04,125.0,18.64964886]
[1744812281384,26.0,125.04,125.0,18.64964886]
[1744812281617,62.90468893,125.04,125.01,7.99936005]
[1744812281896,62.90468893,125.04,125.01,18.64964886]
[1744812282096,36.90468893,125.03,125.01,18.64964886]
[1744812282392,62.90468893,125.04,125.01,18.64964886]
[1744812283287,36.90468893,125.03,125.0,26.6493358]
[1744812283487,62.90468893,125.04,125.0,26.6493358]
[1744812283889,36.90468893,125.03,125.0,26.6493358]
[1744812284396,62.90468893,125.04,125.0,26.6493358]
[1744812284770,8.0472,125.11,125.01,55.55433779]
[1744812284971,9.55815002,125.14,125.05,36.90468893]
[1744812285176,36.90468893,125.09,125.04,57.18303779]
[1744812285395,36.90468893,125.06,125.0,27.99968694]
[1744812285603,36.90468893,125.05,125.02,18.64964886]
[1744812285904,36.90468893,125.04,125.02,26.64794377]
[1744812286300,7.99564728,125.07,125.02,26.64794377]
[1744812286605,36.90468893,125.05,125.02,26.64794377]
[1744812287499,36.90468893,125.04,125.01,1.6451]
[1744812287701,36.90468893,125.03,125.0,26.64924241]
[1744812288003,7.99616184,125.06,125.0,26.64924241]
[1744812288299,6.3729,125.09,125.01,36.90468893]
[1744812288300,7.99424414,125.09,125.01,36.90468893]
[1744812288500,36.90468893,125.07,125.03,18.64964886]
[1744812288888,1.6156,125.11,125.05,18.64964886]
[1744812289213,1.6156,125.11,125.05,55.55433779]
[1744812289214,36.90468893,125.1,125.05,55.55433779]
[1744812289801,36.90468893,125.12,125.07,18.64964886]
[1744812290006,1.6215,125.14,125.07,18.64964886]
[1744812290209,36.90468893,125.11,125.07,18.64964886]
[1744812290405,36.90468893,125.1,125.06,18.64964886]
[1744812290903,36.90468893,125.08,125.05,14.02797048]
[1744812291618,36.90468893,125.09,125.05,50.93265941]
[1744812291980,36.90468893,125.09,125.05,14.02797048]
[1744812292506,62.90468893,125.1,125.05,50.93265941]
[1744812293304,36.90468893,125.09,125.05,14.02797048]
[1744812293515,36.90468893,125.08,125.05,14.02797048]
[1744812293809,36.90468893,125.09,125.05,14.02797048]
[1744812294690,36.90468893,125.09,125.05,50.93265941]
[1744812295499,36.90468893,125.09,125.05,14.02797048]
[1744812295801,36.90468893,125.09,125.05,44.90145941]
[1744812296004,36.90468893,125.09,125.05,7.99677048]
[1744812296386,33.99361764,125.1,125.05,7.99677048]
[1744812296582,36.90468893,125.09,125.05,7.99677048]
[1744812296794,62.90468893,125.1,125.05,44.90145941]
[1744812297013,62.90468893,125.1,125.06,55.55433779]
[1744812297216,49.01584424,125.1,125.06,18.64964886]
[1744812298813,49.01584424,125.1,125.06,26.64537461]
[1744812299408,23.01584424,125.09,125.06,7.99572575]
[1744812300218,57.00960876,125.1,125.06,7.99572575]
[1744812300602,89.5076,125.15,125.09,23.01584424]
[1744812300900,23.01584424,125.13,125.08,23.01584424]
[1744812301223,23.01584424,125.11,125.07,18.64964886]
[1744812302219,23.01584424,125.11,125.07,41.6654931]
[1744812302517,23.01584424,125.11,125.07,49.66060316]
[1744812302901,23.01584424,125.11,125.05,26.0]
[1744812302902,23.01584424,125.09,125.05,26.64645013]
[1744812303518,33.9931081,125.11,125.04,9.65269409]
[1744812303519,53.97552357,125.11,125.04,9.65269409]
[1744812303701,23.01584424,125.1,125.05,41.6654931]
[1744812303900,23.01584424,125.1,125.06,23.01584424]
[1744812304214,49.01584424,125.11,125.06,23.01584424]
[1744812304411,26.0,125.11,125.07,7.9955225]
[1744812304617,26.0,125.11,125.07,49.6610156]
[1744812305218,23.01584424,125.12,125.08,18.64964886]
[1744812305397,23.01584424,125.12,125.08,41.6654931]
[1744812305596,49.01584424,125.13,125.08,41.6654931]
[1744812305797,57.00762276,125.13,125.08,41.6654931]
[1744812306314,26.0,125.13,125.09,23.01584424]
[1744812306495,31.00721852,125.14,125.09,31.0096088]
[1744812307197,44.79377102,125.14,125.09,44.7961613]
[1744812307926,36.80239674,125.12,125.07,36.80239674]
[1744812308111,36.80239674,125.11,125.06,18.64964886]
[1744812308306,36.80239674,125.1,125.06,26.6454981]
[1744812308505,36.80239674,125.08,125.05,6.5961]
[1744812308701,82.9,125.13,125.06,55.4520456]
[1744812308919,82.9,125.13,125.05,34.58484343]
[1744812308920,70.79377102,125.14,125.09,36.80239674]
[1744812309121,36.80239674,125.13,125.09,36.80239674]
[1744812309416,36.80239674,125.13,125.08,36.80239674]
[1744812309621,36.80239674,125.13,125.09,36.80239674]
[1744812309812,70.79377102,125.14,125.09,36.80239674]
[1744812310010,144.15678424,125.16,125.1,36.80239674]
[1744812310011,44.79306136,125.15,125.1,36.80239674]
[1744812310211,7.98913477,125.17,125.14,36.80239674]
[1744812310628,33.98913477,125.17,125.13,36.80239674]
[1744812310798,44.78961718,125.2,125.15,36.80239674]
[1744812311002,44.78961718,125.2,125.11,44.64964886]
[1744812311003,36.80239674,125.17,125.11,44.64964886]
[1744812311326,26.0,125.19,125.13,55.4520456]
[1744812311507,36.80239674,125.19,125.14,36.80239674]
[1744812311823,36.80239674,125.2,125.15,36.80239674]
[1744812312022,62.80239674,125.2,125.16,36.80239674]
[1744812312212,36.80239674,125.2,125.15,44.79232424]
[1744812312409,36.80239674,125.19,125.14,44.79314266]
[1744812312828,36.80239674,125.18,125.13,63.44323715]
[1744812313331,36.80239674,125.19,125.14,36.80239674]
[1744812313805,26.0,125.2,125.16,36.80239674]
[1744812314136,26.0,125.2,125.16,44.79164316]
[1744812314329,2.8906439,125.23,125.18,36.80239674]
[1744812314627,36.80239674,125.22,125.17,55.4520456]
[1744812314827,36.80239674,125.21,125.16,46.38504316]
[1744812315001,36.80239674,125.21,125.17,36.80239674]
[1744812315197,36.80239674,125.22,125.17,36.80239674]
[1744812315632,36.80239674,125.22,125.18,7.98849656]
[1744812315930,2.8906439,125.23,125.21,36.80239674]
[1744812316117,2.8906439,125.23,125.22,36.80239674]
[1744812317310,2.8906439,125.23,125.21,6.3314]
[1744812317611,2.8906439,125.23,125.21,51.11980417]
[1744812318208,2.8906439,125.23,125.22,55.4520456]
[1744812318424,2.8906439,125.23,125.22,93.88854234]
[1744812319310,1e-08,125.23,125.22,93.88854234]
[1744812319509,7.97766254,125.35,125.26,44.64964886]
[1744812319820,36.80239674,125.32,125.27,44.78463723]
[1744812320223,36.80239674,125.33,125.28,36.80239674]
[1744812321438,36.80239674,125.33,125.28,42.83499674]
[1744812321832,44.78094485,125.34,125.29,44.78387969]
[1744812323245,36.80239674,125.33,125.28,7.98186649]
[1744812323549,36.80239674,125.32,125.28,36.80239674]
[1744812323853,62.80239674,125.33,125.28,36.80239674]
[1744812324025,26.0,125.33,125.29,36.80239674]
[1744812324350,26.0,125.33,125.3,36.80239674]
[1744812324528,26.0,125.33,125.29,36.80239674]
[1744812325046,44.77815044,125.38,125.32,36.80239674]
[1744812325227,26.0,125.37,125.33,44.78120461]
[1744812325946,44.77815044,125.38,125.33,44.78120461]
[1744812326147,257.21536347,125.39,125.33,44.78120461]
[1744812326355,249.24,125.39,125.35,36.80239674]
[1744812326663,7.97338941,125.42,125.37,36.80239674]
[1744812326828,44.77578615,125.42,125.37,36.80239674]
[1744812327020,62.80239674,125.41,125.37,36.80239674]
[1744812327221,33.97410413,125.41,125.37,36.80239674]
[1744812327442,62.80239674,125.4,125.36,7.97695677]
[1744812327639,36.80239674,125.39,125.34,55.4520456]
[1744812327839,36.80239674,125.38,125.34,7.9780487]
[1744812328048,36.80239674,125.38,125.33,63.43068963]
[1744812328248,36.80239674,125.38,125.33,44.78104077]
[1744812328440,36.80239674,125.38,125.33,36.80239674]
[1744812328940,36.80239674,125.36,125.3,26.63049482]
[1744812329140,36.80239674,125.37,125.33,36.80239674]
[1744812329536,36.80239674,125.37,125.3,46.58260974]
[1744812329742,36.80239674,125.36,125.32,36.80239674]
[1744812329940,62.80239674,125.37,125.33,36.80239674]
[1744812330144,62.80239674,125.37,125.32,36.80239674]
[1744812330343,36.80239674,125.36,125.31,36.80239674]
[1744812330653,36.80239674,125.36,125.3,46.58260974]
[1744812330654,36.80239674,125.35,125.3,63.43289156]
[1744812331048,26.0,125.37,125.33,55.4520456]
[1744812332052,36.80239674,125.34,125.29,6.2764]
[1744812332256,33.97669105,125.37,125.26,1.5866]
[1744812332257,36.80239674,125.32,125.28,36.80239674]
[1744812332860,62.80239674,125.34,125.29,36.80239674]
[1744812333162,62.80239674,125.34,125.28,18.64964886]
[1744812333457,62.80239674,125.34,125.29,36.80239674]
[1744812333659,26.0,125.34,125.3,36.80239674]
[1744812334031,36.80239674,125.35,125.31,44.78260582]
[1744812334254,44.78015171,125.35,125.3,44.78312676]
[1744812334463,44.78015171,125.35,125.3,7.98073002]
[1744812334757,44.78015171,125.35,125.3,44.78312676]
[1744812335959,62.80239674,125.36,125.31,36.80239674]
[1744812336264,26.0,125.36,125.32,36.80239674]
[1744812337056,33.97715819,125.36,125.32,36.80239674]
[1744812337251,62.80239674,125.36,125.32,36.80239674]
[1744812337935,70.77954716,125.36,125.32,44.7817363]
[1744812338363,70.77954716,125.36,125.32,7.97933956]
[1744812339044,33.97715042,125.36,125.32,44.7817363]
[1744812339663,70.77954716,125.36,125.32,44.7817363]
[1744812339837,26.0,125.36,125.32,44.7817363]
[1744812340044,26.0,125.36,125.33,36.80239674]
[1744812340242,44.77882587,125.37,125.32,44.7817363]
[1744812340463,70.77882587,125.37,125.32,44.7817363]
[1744812340762,36.80239674,125.36,125.32,7.97933956]
[1744812341136,44.77986773,125.36,125.31,63.4319327]
[1744812341343,36.80239674,125.34,125.3,36.80239674]
[1744812341545,36.80239674,125.32,125.28,44.78420085]
[1744812341950,36.80239674,125.34,125.29,36.80239674]
[1744812342251,70.77986773,125.36,125.31,36.80239674]
[1744812342661,36.80239674,125.35,125.3,36.80239674]
[1744812342848,36.80239674,125.34,125.3,36.80239674]
[1744812343157,36.80239674,125.34,125.3,44.78305569]
[1744812343359,36.80239674,125.33,125.29,36.80239674]
[1744812343565,33.9772894,125.36,125.31,36.80239674]
[1744812343866,33.9772894,125.36,125.33,36.80239674]
[1744812344171,33.9772894,125.36,125.32,36.80239674]
[1744812344566,7.97448165,125.4,125.35,36.80239674]
[1744812344737,44.77687839,125.4,125.35,36.80239674]
[1744812344943,7.97448165,125.4,125.36,36.80239674]
[1744812345251,7.97448165,125.4,125.36,44.77930096]
[1744812345564,44.77687839,125.4,125.36,44.77930096]
[1744812345945,7.97448165,125.4,125.36,44.77930096]
[1744812346562,7.97448165,125.4,125.34,18.64964886]
[1744812346769,44.77687839,125.4,125.35,44.78005928]
[1744812347263,7.97448165,125.4,125.33,1.6629]
[1744812347458,36.80239674,125.38,125.33,38.46529674]
[1744812348246,36.80239674,125.39,125.34,55.4520456]
[1744812348468,44.77687839,125.4,125.35,36.80239674]
[1744812348772,36.80239674,125.4,125.36,36.80239674]
[1744812348956,7.97448165,125.4,125.36,36.80239674]
[1744812349348,7.97448165,125.4,125.33,1.6629]
[1744812349349,44.77687839,125.4,125.33,1.6629]
[1744812349549,36.80239674,125.37,125.33,7.9789356]
[1744812349745,7.97448165,125.4,125.35,36.80239674]
[1744812349970,7.97448165,125.4,125.33,7.9789356]
[1744812349971,36.80239674,125.39,125.34,36.80239674]
[1744812350269,36.80239674,125.38,125.33,7.9789356]
[1744812350465,36.80239674,125.38,125.33,44.78133234]
[1744812350670,36.80239674,125.39,125.34,36.80239674]
[1744812350851,44.77687839,125.4,125.36,36.80239674]
[1744812351567,7.97448165,125.4,125.35,44.77988321]
[1744812351768,44.77687839,125.4,125.35,44.77988321]
[1744812352274,44.77687839,125.4,125.35,36.80239674]
[1744812352461,36.80239674,125.38,125.34,36.80239674]
[1744812352661,36.80239674,125.38,125.33,44.78100897]
[1744812353472,44.77855615,125.38,125.33,7.97861223]
[1744812353693,36.80239674,125.37,125.33,36.80239674]
[1744812353975,44.77855615,125.38,125.34,36.80239674]
[1744812354684,36.80239674,125.4,125.35,36.80239674]
[1744812354854,62.80239674,125.41,125.36,36.80239674]
[1744812355053,26.0,125.41,125.36,36.80239674]
[1744812355276,257.0918,125.44,125.39,36.80239674]
[1744812355569,7.911,125.47,125.41,36.80239674]
[1744812355774,36.80239674,125.45,125.41,36.80239674]
[1744812356149,36.80239674,125.45,125.4,44.7763261]
[1744812356975,36.80239674,125.45,125.41,36.80239674]
[1744812357162,62.80239674,125.47,125.42,36.80239674]
[1744812357764,65.69304064,125.48,125.43,36.80239674]
[1744812357962,65.69304064,125.48,125.45,36.80239674]
[1744812357963,2.8906439,125.48,125.45,36.80239674]
[1744812358273,2.8906439,125.48,125.46,36.80239674]
[1744812358447,28.8906439,125.48,125.46,36.80239674]
[1744812358648,28.8906439,125.48,125.46,44.77264157]
[1744812358893,2.8906439,125.48,125.46,44.77264157]
[1744812359193,2.8906439,125.48,125.47,55.4520456]
[1744812360273,1e-08,125.48,125.47,55.4520456]
[1744812360789,1e-08,125.48,125.47,63.42207827]
[1744812361085,44.54219674,125.58,125.48,18.64964886]
[1744812361396,36.80239674,125.57,125.49,1.6623]
[1744812361594,36.80239674,125.56,125.51,36.80239674]
[1744812361884,36.80239674,125.55,125.51,36.80239674]
[1744812362087,36.80239674,125.56,125.51,36.80239674]
[1744812362582,36.80239674,125.54,125.51,7.96749263]
[1744812363159,36.80239674,125.53,125.49,7.96876245]
[1744812363364,36.80239674,125.51,125.48,7.96912786]
[1744812363662,36.80239674,125.53,125.48,44.7715246]
[1744812363872,36.80239674,125.52,125.48,44.7715246]
[1744812364093,36.80239674,125.5,125.47,7.96987823]
[1744812364583,36.80239674,125.49,125.45,18.64964886]
[1744812365575,36.80239674,125.49,125.44,44.77433551]
[1744812365885,36.80239674,125.48,125.44,7.97193877]
[1744812366260,36.80239674,125.47,125.44,7.97193877]
[1744812366497,26.0,125.49,125.45,55.4520456]
[1744812366791,36.80239674,125.5,125.46,7.97066794]
[1744812366984,36.80239674,125.48,125.45,7.97114066]
[1744812367177,36.80239674,125.47,125.45,7.97114066]
[1744812367781,36.80239674,125.48,125.45,7.97114066]
[1744812368085,36.80239674,125.49,125.45,44.7735374]
[1744812368489,36.80239674,125.51,125.46,55.4520456]